[Event "Early-Titled-Tuesday-Blitz-May-28-2024"]
[Site "Chess.com"]
[Date "2024.05.28"]
[Round "8"]
[White "Msb2"]
[Black "platy3"]
[Result "1/2-1/2"]
[WhiteElo "3040"]
[BlackElo "2882"]
[TimeControl "180+1"]
[EndTime "9:31:53 PDT"]
[Termination "Game drawn - insufficient material"]

1. d4 {[%clk 0:03:00.9]} 1... Nf6 {[%clk 0:02:59.1]} 2. c4 {[%clk 0:03:01.3]}
2... e6 {[%clk 0:02:59.3]} 3. Nc3 {[%clk 0:03:01.9]} 3... Bb4 {[%clk 0:02:58]}
4. e3 {[%clk 0:03:02.5]} 4... O-O {[%clk 0:02:57.6]} 5. Bd2 {[%clk 0:03:03.1]}
5... c5 {[%clk 0:02:54.8]} 6. a3 {[%clk 0:03:03.1]} 6... Bxc3 {[%clk 0:02:51.5]}
7. Bxc3 {[%clk 0:03:04]} 7... b6 {[%clk 0:02:41.2]} 8. Bd3 {[%clk 0:02:57.5]}
8... Bb7 {[%clk 0:02:40.8]} 9. Nf3 {[%clk 0:02:57.9]} 9... cxd4 {[%clk
0:02:32.5]} 10. Nxd4 {[%clk 0:02:58.8]} 10... d6 {[%clk 0:02:27.8]} 11. O-O
{[%clk 0:02:58.5]} 11... a6 {[%clk 0:02:26.2]} 12. Rc1 {[%clk 0:02:57.7]} 12...
Nbd7 {[%clk 0:02:26.3]} 13. b4 {[%clk 0:02:55.3]} 13... Rc8 {[%clk 0:02:24.5]}
14. Bb2 {[%clk 0:02:55.6]} 14... Qe7 {[%clk 0:02:22.7]} 15. Be2 {[%clk
0:02:54.9]} 15... Rc7 {[%clk 0:02:18.4]} 16. h3 {[%clk 0:02:48.5]} 16... Rfc8
{[%clk 0:02:18.1]} 17. Qb3 {[%clk 0:02:44.2]} 17... h6 {[%clk 0:02:17.3]} 18.
Rfd1 {[%clk 0:02:44.4]} 18... Ne5 {[%clk 0:02:14.9]} 19. Kh2 {[%clk 0:02:19.7]}
19... Ne4 {[%clk 0:02:12.2]} 20. f3 {[%clk 0:02:16.7]} 20... Nf6 {[%clk
0:02:08.3]} 21. Rc2 {[%clk 0:02:09.2]} 21... d5 {[%clk 0:01:59.9]} 22. Rdc1
{[%clk 0:01:16.8]} 22... dxc4 {[%clk 0:01:42.6]} 23. Bxc4 {[%clk 0:01:17.7]}
23... Nxc4 {[%clk 0:00:39.6]} 24. Rxc4 {[%clk 0:01:18.6]} 24... Bd5 {[%clk
0:00:40.1]} 25. Rxc7 {[%clk 0:01:17.2]} 25... Rxc7 {[%clk 0:00:40.9]} 26. Qd1
{[%clk 0:01:14.5]} 26... Bc4 {[%clk 0:00:25.1]} 27. e4 {[%clk 0:01:08.1]} 27...
b5 {[%clk 0:00:24.6]} 28. Qe1 {[%clk 0:01:03.3]} 28... Rd7 {[%clk 0:00:24]} 29.
Qg3 {[%clk 0:00:56.4]} 29... Nh5 {[%clk 0:00:22.4]} 30. Qb8+ {[%clk 0:00:44.2]}
30... Kh7 {[%clk 0:00:20.8]} 31. Qe5 {[%clk 0:00:32.6]} 31... Qg5 {[%clk
0:00:17.3]} 32. Qxg5 {[%clk 0:00:32.8]} 32... hxg5 {[%clk 0:00:18.2]} 33. a4
{[%clk 0:00:28.7]} 33... Nf4 {[%clk 0:00:18]} 34. axb5 {[%clk 0:00:28.7]} 34...
axb5 {[%clk 0:00:15.3]} 35. Bc3 {[%clk 0:00:24.3]} 35... f6 {[%clk 0:00:14.9]}
36. e5 {[%clk 0:00:19.4]} 36... Nd3 {[%clk 0:00:13.8]} 37. Ra1 {[%clk
0:00:15.8]} 37... Nxe5 {[%clk 0:00:14.3]} 38. Ra5 {[%clk 0:00:12.6]} 38... Ng6
{[%clk 0:00:12.8]} 39. Nxb5 {[%clk 0:00:10.3]} 39... Rd3 {[%clk 0:00:13.1]} 40.
Be1 {[%clk 0:00:09.2]} 40... Re3 {[%clk 0:00:13]} 41. Bf2 {[%clk 0:00:07.6]}
41... Re2 {[%clk 0:00:12.2]} 42. Kg1 {[%clk 0:00:08.2]} 42... Nf4 {[%clk
0:00:11.7]} 43. Nd4 {[%clk 0:00:08.8]} 43... Rb2 {[%clk 0:00:11.6]} 44. Rc5
{[%clk 0:00:08.2]} 44... Bd5 {[%clk 0:00:10.3]} 45. Rc2 {[%clk 0:00:08.1]} 45...
Rxb4 {[%clk 0:00:08.7]} 46. Ne2 {[%clk 0:00:08.2]} 46... Nd3 {[%clk 0:00:07.2]}
47. Bg3 {[%clk 0:00:08.3]} 47... Rb1+ {[%clk 0:00:06.6]} 48. Kh2 {[%clk
0:00:08.7]} 48... Nb4 {[%clk 0:00:05.5]} 49. Rd2 {[%clk 0:00:09.2]} 49... Rb3
{[%clk 0:00:04]} 50. Nd4 {[%clk 0:00:09.4]} 50... Rc3 {[%clk 0:00:02.8]} 51. Be1
{[%clk 0:00:08.7]} 51... Rc4 {[%clk 0:00:03.3]} 52. Bg3 {[%clk 0:00:08.6]} 52...
Na6 {[%clk 0:00:02.7]} 53. Nb5 {[%clk 0:00:08]} 53... Nc5 {[%clk 0:00:02.6]} 54.
Nd6 {[%clk 0:00:08.5]} 54... Rc1 {[%clk 0:00:01.9]} 55. Bf2 {[%clk 0:00:07.7]}
55... Nb3 {[%clk 0:00:02.3]} 56. Rd3 {[%clk 0:00:08.3]} 56... Rc2 {[%clk
0:00:02.2]} 57. Be3 {[%clk 0:00:08.8]} 57... Nc1 {[%clk 0:00:02.2]} 58. Rd2
{[%clk 0:00:08.5]} 58... Rxd2 {[%clk 0:00:02.4]} 59. Bxd2 {[%clk 0:00:09.4]}
59... Nd3 {[%clk 0:00:03.1]} 60. Nb5 {[%clk 0:00:09.6]} 60... Kg6 {[%clk
0:00:03.5]} 61. Nc3 {[%clk 0:00:10.2]} 61... Bc6 {[%clk 0:00:03.5]} 62. Kg3
{[%clk 0:00:10.5]} 62... e5 {[%clk 0:00:04.1]} 63. h4 {[%clk 0:00:10.9]} 63...
gxh4+ {[%clk 0:00:03.5]} 64. Kxh4 {[%clk 0:00:11.8]} 64... Kf5 {[%clk
0:00:04.1]} 65. Kg3 {[%clk 0:00:12.3]} 65... g5 {[%clk 0:00:03.9]} 66. Nd1
{[%clk 0:00:12.2]} 66... Ke6 {[%clk 0:00:03.9]} 67. Ne3 {[%clk 0:00:12.8]} 67...
Nf4 {[%clk 0:00:04.2]} 68. Kf2 {[%clk 0:00:12.3]} 68... Nd3+ {[%clk 0:00:04.4]}
69. Ke2 {[%clk 0:00:12.9]} 69... Nc5 {[%clk 0:00:04.8]} 70. g3 {[%clk
0:00:12.4]} 70... Nd7 {[%clk 0:00:04.5]} 71. Bc3 {[%clk 0:00:12.7]} 71... Nb6
{[%clk 0:00:04.4]} 72. Kf2 {[%clk 0:00:12.8]} 72... Na4 {[%clk 0:00:04.5]} 73.
Ba1 {[%clk 0:00:12.8]} 73... Nc5 {[%clk 0:00:04.6]} 74. Bc3 {[%clk 0:00:13.2]}
74... f5 {[%clk 0:00:03.9]} 75. Nc4 {[%clk 0:00:12.6]} 75... Nd7 {[%clk
0:00:03.2]} 76. f4 {[%clk 0:00:11.7]} 76... exf4 {[%clk 0:00:02.7]} 77. gxf4
{[%clk 0:00:12.6]} 77... g4 {[%clk 0:00:03.4]} 78. Ne5 {[%clk 0:00:12]} 78...
Nb8 {[%clk 0:00:02.9]} 79. Bd4 {[%clk 0:00:12.3]} 79... Be4 {[%clk 0:00:03.3]}
80. Kg3 {[%clk 0:00:12.5]} 80... Na6 {[%clk 0:00:03.7]} 81. Nxg4 {[%clk
0:00:12.6]} 81... fxg4 {[%clk 0:00:03.3]} 82. Kxg4 {[%clk 0:00:13.5]} 82... Bf5+
{[%clk 0:00:03.9]} 83. Kg3 {[%clk 0:00:13.6]} 83... Nc7 {[%clk 0:00:04.8]} 84.
Be5 {[%clk 0:00:13.8]} 84... Nd5 {[%clk 0:00:05.4]} 85. Kf2 {[%clk 0:00:14.7]}
85... Ne7 {[%clk 0:00:05.9]} 86. Kf3 {[%clk 0:00:15.6]} 86... Ng6 {[%clk
0:00:06.6]} 87. Ke3 {[%clk 0:00:16.1]} 87... Ne7 {[%clk 0:00:06.9]} 88. Kd4
{[%clk 0:00:16.6]} 88... Nd5 {[%clk 0:00:07.5]} 89. Kc4 {[%clk 0:00:16.4]} 89...
Nxf4 {[%clk 0:00:08.3]} 90. Bxf4 {[%clk 0:00:16.6]} 1/2-1/2

[Event "Early-Titled-Tuesday-Blitz-May-28-2024"]
[Site "Chess.com"]
[Date "2024.05.28"]
[Round "8"]
[White "vi_pranav"]
[Black "Grischuk"]
[Result "1/2-1/2"]
[WhiteElo "3052"]
[BlackElo "3122"]
[TimeControl "180+1"]
[EndTime "9:31:55 PDT"]
[Termination "Game drawn - insufficient material"]

1. e4 {[%clk 0:03:00.9]} 1... e5 {[%clk 0:02:59.8]} 2. Nc3 {[%clk 0:03:00.7]}
2... Nf6 {[%clk 0:02:59.3]} 3. Bc4 {[%clk 0:03:00.7]} 3... Nxe4 {[%clk
0:02:55.1]} 4. Qh5 {[%clk 0:03:00.1]} 4... Nd6 {[%clk 0:02:55.2]} 5. Qxe5+
{[%clk 0:02:59.4]} 5... Qe7 {[%clk 0:02:55]} 6. Qxe7+ {[%clk 0:02:59.6]} 6...
Bxe7 {[%clk 0:02:55.9]} 7. Be2 {[%clk 0:03:00.1]} 7... Nf5 {[%clk 0:02:51.5]} 8.
Nf3 {[%clk 0:02:59.9]} 8... c6 {[%clk 0:02:51.2]} 9. g4 {[%clk 0:02:59.6]} 9...
Nh4 {[%clk 0:02:51.2]} 10. Nxh4 {[%clk 0:03:00.1]} 10... Bxh4 {[%clk 0:02:52.1]}
11. Ne4 {[%clk 0:03:00.7]} 11... Be7 {[%clk 0:02:50.3]} 12. d4 {[%clk
0:03:00.8]} 12... d5 {[%clk 0:02:51]} 13. Ng3 {[%clk 0:03:00.8]} 13... Bh4
{[%clk 0:02:39.5]} 14. Bf4 {[%clk 0:02:55.4]} 14... Be6 {[%clk 0:02:38.7]} 15.
O-O-O {[%clk 0:02:49]} 15... g6 {[%clk 0:02:29.8]} 16. f3 {[%clk 0:02:45.7]}
16... Nd7 {[%clk 0:02:28.2]} 17. Bd3 {[%clk 0:02:44.7]} 17... O-O-O {[%clk
0:02:24.1]} 18. Ne2 {[%clk 0:02:30.2]} 18... h5 {[%clk 0:02:15]} 19. h3 {[%clk
0:02:26.3]} 19... Rde8 {[%clk 0:02:08.4]} 20. Bd2 {[%clk 0:02:17]} 20... Nf8
{[%clk 0:01:43.2]} 21. Nf4 {[%clk 0:02:13.4]} 21... Bd7 {[%clk 0:01:43.8]} 22.
Ng2 {[%clk 0:01:59.6]} 22... Bf2 {[%clk 0:01:26.5]} 23. c3 {[%clk 0:01:55.2]}
23... Ne6 {[%clk 0:01:26.1]} 24. Rdf1 {[%clk 0:01:42.8]} 24... Bg3 {[%clk
0:01:25.7]} 25. f4 {[%clk 0:01:43.3]} 25... Ng7 {[%clk 0:00:57.1]} 26. f5 {[%clk
0:00:58.4]} 26... gxf5 {[%clk 0:00:51.4]} 27. gxf5 {[%clk 0:00:54.5]} 27... h4
{[%clk 0:00:51.6]} 28. Bg5 {[%clk 0:00:52.8]} 28... Rh5 {[%clk 0:00:47.3]} 29.
Bf6 {[%clk 0:00:43.5]} 29... Bxf5 {[%clk 0:00:42.6]} 30. Nf4 {[%clk 0:00:17.6]}
30... Bxd3 {[%clk 0:00:30.2]} 31. Nxd3 {[%clk 0:00:09.9]} 31... Nf5 {[%clk
0:00:09.6]} 32. Kd2 {[%clk 0:00:09.7]} 32... Nd6 {[%clk 0:00:09.1]} 33. Kd1
{[%clk 0:00:04.9]} 33... Ne4 {[%clk 0:00:07]} 34. Rhg1 {[%clk 0:00:05.2]} 34...
Re6 {[%clk 0:00:05.5]} 35. Be5 {[%clk 0:00:05.2]} 35... f6 {[%clk 0:00:05.7]}
36. Bf4 {[%clk 0:00:03.6]} 36... Re8 {[%clk 0:00:03.8]} 37. Be3 {[%clk
0:00:02.3]} 37... b6 {[%clk 0:00:03.4]} 38. Bc1 {[%clk 0:00:02.4]} 38... Kd7
{[%clk 0:00:03.2]} 39. a4 {[%clk 0:00:02.8]} 39... a5 {[%clk 0:00:03]} 40. Nf4
{[%clk 0:00:02.8]} 40... Rf5 {[%clk 0:00:02.3]} 41. Nd3 {[%clk 0:00:02.7]} 41...
Rxf1+ {[%clk 0:00:02.6]} 42. Rxf1 {[%clk 0:00:03.6]} 42... Rg8 {[%clk
0:00:02.5]} 43. Kc2 {[%clk 0:00:02.4]} 43... Bd6 {[%clk 0:00:02.5]} 44. Bf4
{[%clk 0:00:02.4]} 44... Rg2+ {[%clk 0:00:02.6]} 45. Kc1 {[%clk 0:00:02.8]}
45... Bxf4+ {[%clk 0:00:01.9]} 46. Nxf4 {[%clk 0:00:03.7]} 46... Rf2 {[%clk
0:00:01.3]} 47. Rxf2 {[%clk 0:00:03.7]} 47... Nxf2 {[%clk 0:00:02.2]} 48. Kd2
{[%clk 0:00:04.6]} 48... Ne4+ {[%clk 0:00:02.1]} 49. Ke3 {[%clk 0:00:04.9]}
49... Ng5 {[%clk 0:00:02.1]} 50. Kf2 {[%clk 0:00:04.2]} 50... b5 {[%clk
0:00:02.2]} 51. axb5 {[%clk 0:00:04.1]} 51... cxb5 {[%clk 0:00:02.3]} 52. Nxd5
{[%clk 0:00:04.7]} 52... Nxh3+ {[%clk 0:00:02.2]} 53. Kg2 {[%clk 0:00:05.1]}
53... Ng5 {[%clk 0:00:02.8]} 54. Nxf6+ {[%clk 0:00:05.7]} 54... Ke6 {[%clk
0:00:02.9]} 55. Ng4 {[%clk 0:00:06.1]} 55... Kd5 {[%clk 0:00:03]} 56. Nf6+
{[%clk 0:00:06.5]} 56... Kc4 {[%clk 0:00:03]} 57. d5 {[%clk 0:00:07]} 57... a4
{[%clk 0:00:01]} 58. d6 {[%clk 0:00:07.1]} 58... Nf7 {[%clk 0:00:01.6]} 59. d7
{[%clk 0:00:07.1]} 59... Nd8 {[%clk 0:00:01.7]} 60. Ne4 {[%clk 0:00:07.5]} 60...
Kb3 {[%clk 0:00:01.5]} 61. Nd6 {[%clk 0:00:08]} 61... Kxb2 {[%clk 0:00:01]} 62.
Nxb5 {[%clk 0:00:08.6]} 62... Kb3 {[%clk 0:00:01.2]} 63. Kh3 {[%clk 0:00:08.9]}
63... Kc4 {[%clk 0:00:01.6]} 64. Na3+ {[%clk 0:00:09.3]} 64... Kxc3 {[%clk
0:00:02]} 65. Kxh4 {[%clk 0:00:09.4]} 65... Kb3 {[%clk 0:00:02.2]} 66. Nb1
{[%clk 0:00:09.8]} 66... Kb2 {[%clk 0:00:02.5]} 67. Nd2 {[%clk 0:00:10.4]} 67...
Kc3 {[%clk 0:00:02.5]} 68. Nb1+ {[%clk 0:00:10.7]} 68... Kd4 {[%clk 0:00:02.6]}
69. Kg5 {[%clk 0:00:10.7]} 69... Ke5 {[%clk 0:00:03.1]} 70. Na3 {[%clk 0:00:10]}
70... Kd6 {[%clk 0:00:03]} 71. Kf5 {[%clk 0:00:10.2]} 71... Kxd7 {[%clk
0:00:03.5]} 72. Ke5 {[%clk 0:00:10.8]} 72... Kc6 {[%clk 0:00:04.1]} 73. Kd4
{[%clk 0:00:11.5]} 73... Kb6 {[%clk 0:00:03.9]} 74. Kc4 {[%clk 0:00:12.1]} 74...
Ka5 {[%clk 0:00:04.5]} 75. Kc3 {[%clk 0:00:12.4]} 75... Nc6 {[%clk 0:00:04.7]}
76. Nc4+ {[%clk 0:00:12]} 76... Kb5 {[%clk 0:00:05.3]} 77. Nb2 {[%clk
0:00:11.7]} 77... a3 {[%clk 0:00:04.9]} 78. Kb3 {[%clk 0:00:12.1]} 78... axb2
{[%clk 0:00:04.2]} 79. Kxb2 {[%clk 0:00:12.7]} 1/2-1/2

[Event "Early-Titled-Tuesday-Blitz-May-28-2024"]
[Site "Chess.com"]
[Date "2024.05.28"]
[Round "8"]
[White "Grebeniuk-S"]
[Black "alex1531"]
[Result "1/2-1/2"]
[WhiteElo "2641"]
[BlackElo "2448"]
[TimeControl "180+1"]
[EndTime "9:32:03 PDT"]
[Termination "Game drawn - insufficient material"]

1. d4 {[%clk 0:03:00.9]} 1... f5 {[%clk 0:02:51.8]} 2. g3 {[%clk 0:02:59.3]}
2... Nf6 {[%clk 0:02:43.6]} 3. Bg2 {[%clk 0:02:59]} 3... d6 {[%clk 0:02:41]} 4.
Nh3 {[%clk 0:02:55]} 4... g6 {[%clk 0:02:32.1]} 5. Nc3 {[%clk 0:02:52.1]} 5...
Bg7 {[%clk 0:02:31.7]} 6. d5 {[%clk 0:02:51.4]} 6... O-O {[%clk 0:02:21.2]} 7.
Nf4 {[%clk 0:02:51]} 7... c6 {[%clk 0:02:10.1]} 8. h4 {[%clk 0:02:37.1]} 8...
cxd5 {[%clk 0:01:48.4]} 9. Ncxd5 {[%clk 0:02:35.4]} 9... e6 {[%clk 0:01:40.1]}
10. Nxf6+ {[%clk 0:02:31.6]} 10... Bxf6 {[%clk 0:01:41]} 11. O-O {[%clk
0:02:23.4]} 11... Nc6 {[%clk 0:01:40.9]} 12. c3 {[%clk 0:02:17.6]} 12... d5
{[%clk 0:01:22.2]} 13. Qb3 {[%clk 0:01:57.1]} 13... Kg7 {[%clk 0:01:17.6]} 14.
Rd1 {[%clk 0:01:56.4]} 14... Qe7 {[%clk 0:01:12.1]} 15. Be3 {[%clk 0:01:52.8]}
15... b6 {[%clk 0:01:09.1]} 16. Bd4 {[%clk 0:01:00.7]} 16... Nxd4 {[%clk
0:01:06.1]} 17. cxd4 {[%clk 0:01:00.4]} 17... Ba6 {[%clk 0:01:01.2]} 18. Rac1
{[%clk 0:00:57.9]} 18... Rfc8 {[%clk 0:00:59]} 19. Qa4 {[%clk 0:00:55.8]} 19...
Bb7 {[%clk 0:00:37.1]} 20. e3 {[%clk 0:00:52.7]} 20... Rxc1 {[%clk 0:00:32.3]}
21. Rxc1 {[%clk 0:00:52.5]} 21... Rc8 {[%clk 0:00:33.2]} 22. Rxc8 {[%clk
0:00:52.6]} 22... Bxc8 {[%clk 0:00:32.5]} 23. Qc6 {[%clk 0:00:52.6]} 23... Qd7
{[%clk 0:00:29.9]} 24. Qxd7+ {[%clk 0:00:48.6]} 24... Bxd7 {[%clk 0:00:30]} 25.
Bf1 {[%clk 0:00:49.5]} 25... Kf8 {[%clk 0:00:24.8]} 26. f3 {[%clk 0:00:48.4]}
26... Ke7 {[%clk 0:00:24]} 27. Kf2 {[%clk 0:00:49]} 27... Kd6 {[%clk 0:00:24.4]}
28. Nd3 {[%clk 0:00:45.9]} 28... Bb5 {[%clk 0:00:22.5]} 29. f4 {[%clk
0:00:39.2]} 29... Bxd3 {[%clk 0:00:22.2]} 30. Bxd3 {[%clk 0:00:40.1]} 30... Be7
{[%clk 0:00:21]} 31. Bb5 {[%clk 0:00:40.4]} 31... Bf8 {[%clk 0:00:18.1]} 32. Ke2
{[%clk 0:00:39.7]} 32... Ke7 {[%clk 0:00:17.5]} 33. Kd3 {[%clk 0:00:39.9]} 33...
Kd6 {[%clk 0:00:12.9]} 34. Kc3 {[%clk 0:00:40.4]} 34... Be7 {[%clk 0:00:12.7]}
35. Kb3 {[%clk 0:00:40.8]} 35... Bd8 {[%clk 0:00:12.7]} 36. Ka4 {[%clk
0:00:41.1]} 36... Ke7 {[%clk 0:00:08.9]} 37. Bd3 {[%clk 0:00:38.7]} 37... Kd6
{[%clk 0:00:06.1]} 38. Kb5 {[%clk 0:00:39.3]} 38... Kc7 {[%clk 0:00:05.6]} 39.
Ka6 {[%clk 0:00:39.2]} 39... Kb8 {[%clk 0:00:05.3]} 40. Bb5 {[%clk 0:00:39.9]}
40... h6 {[%clk 0:00:04.4]} 41. Bd7 {[%clk 0:00:38.5]} 41... g5 {[%clk
0:00:04.7]} 42. hxg5 {[%clk 0:00:31.8]} 42... hxg5 {[%clk 0:00:05.6]} 43. Bxe6
{[%clk 0:00:32.2]} 43... gxf4 {[%clk 0:00:05.2]} 44. gxf4 {[%clk 0:00:33.1]}
44... Bh4 {[%clk 0:00:04.6]} 45. Bxf5 {[%clk 0:00:27.1]} 45... Bf2 {[%clk
0:00:05.5]} 46. Be6 {[%clk 0:00:27.4]} 46... Bxe3 {[%clk 0:00:05.6]} 47. f5
{[%clk 0:00:27.5]} 47... Bxd4 {[%clk 0:00:05.7]} 48. b3 {[%clk 0:00:27.1]} 48...
Bf6 {[%clk 0:00:05.2]} 49. Bxd5 {[%clk 0:00:27.4]} 49... Be5 {[%clk 0:00:05.4]}
50. Be6 {[%clk 0:00:27.7]} 50... Bf6 {[%clk 0:00:05.4]} 51. a4 {[%clk
0:00:28.3]} 51... Be5 {[%clk 0:00:05.4]} 52. Kb5 {[%clk 0:00:27.4]} 52... Kc7
{[%clk 0:00:05.5]} 53. Ka6 {[%clk 0:00:27.3]} 53... Kb8 {[%clk 0:00:05.8]} 54.
Bd5 {[%clk 0:00:26.9]} 54... Bf6 {[%clk 0:00:05.6]} 55. Be4 {[%clk 0:00:27.8]}
55... Be5 {[%clk 0:00:05.7]} 56. Kb5 {[%clk 0:00:28.7]} 56... Kc7 {[%clk
0:00:05.7]} 57. Ka6 {[%clk 0:00:29.2]} 57... Kb8 {[%clk 0:00:05.5]} 58. Bd3
{[%clk 0:00:29.8]} 58... Bf6 {[%clk 0:00:05.4]} 59. a5 {[%clk 0:00:30.2]} 59...
bxa5 {[%clk 0:00:04.8]} 60. Kxa5 {[%clk 0:00:31.1]} 60... Kc7 {[%clk 0:00:04.5]}
61. Ka6 {[%clk 0:00:32]} 61... Bd4 {[%clk 0:00:04.3]} 62. Bc4 {[%clk 0:00:32]}
62... Kd6 {[%clk 0:00:04.4]} 63. Be6 {[%clk 0:00:32.6]} 63... Kc7 {[%clk
0:00:04.1]} 64. Kb5 {[%clk 0:00:32.6]} 64... Kd6 {[%clk 0:00:04.3]} 65. Kc4
{[%clk 0:00:33.5]} 65... Bf6 {[%clk 0:00:04.2]} 66. Kd3 {[%clk 0:00:33.4]} 66...
Ke7 {[%clk 0:00:04.4]} 67. Ke4 {[%clk 0:00:34]} 67... Kd6 {[%clk 0:00:05]} 68.
Bc8 {[%clk 0:00:33.7]} 68... Be5 {[%clk 0:00:05.1]} 69. Kf3 {[%clk 0:00:33.8]}
69... Bf6 {[%clk 0:00:05.3]} 70. Kg4 {[%clk 0:00:34.3]} 70... Ke7 {[%clk
0:00:05.7]} 71. Kh5 {[%clk 0:00:34.6]} 71... Be5 {[%clk 0:00:06]} 72. Kg6 {[%clk
0:00:35.2]} 72... Bf6 {[%clk 0:00:06.5]} 73. Be6 {[%clk 0:00:35.5]} 73... Be5
{[%clk 0:00:07]} 74. Kg5 {[%clk 0:00:36.4]} 74... Bf6+ {[%clk 0:00:07.2]} 75.
Kf4 {[%clk 0:00:37.3]} 75... Kd6 {[%clk 0:00:07.8]} 76. Ke4 {[%clk 0:00:38.2]}
76... Be5 {[%clk 0:00:07.8]} 77. Kd3 {[%clk 0:00:38.7]} 77... Kc5 {[%clk
0:00:07.5]} 78. Bg8 {[%clk 0:00:37.6]} 78... Bf6 {[%clk 0:00:07.2]} 79. Ke4
{[%clk 0:00:38.1]} 79... Kd6 {[%clk 0:00:07.3]} 80. b4 {[%clk 0:00:38.6]} 80...
Bc3 {[%clk 0:00:06.5]} 81. b5 {[%clk 0:00:38.5]} 81... Bf6 {[%clk 0:00:06.7]}
82. Be6 {[%clk 0:00:38.4]} 82... Kc5 {[%clk 0:00:06.2]} 83. Bd7 {[%clk
0:00:37.2]} 83... Kd6 {[%clk 0:00:06.4]} 84. Bc6 {[%clk 0:00:37.9]} 84... a6
{[%clk 0:00:04.9]} 85. bxa6 {[%clk 0:00:23.2]} 85... Kxc6 {[%clk 0:00:04.8]} 86.
Kf4 {[%clk 0:00:22.5]} 86... Kb6 {[%clk 0:00:04.7]} 87. Kg4 {[%clk 0:00:22.8]}
87... Kxa6 {[%clk 0:00:04.9]} 88. Kh5 {[%clk 0:00:23.7]} 88... Kb6 {[%clk
0:00:05]} 89. Kg6 {[%clk 0:00:24.6]} 89... Ba1 {[%clk 0:00:04.5]} 90. f6 {[%clk
0:00:25.5]} 90... Bxf6 {[%clk 0:00:04.8]} 1/2-1/2